Workbook

Sheet PastureRental
B3: KSU-Budgeting for a Pasture Rental Rate
B5: An Excel spreadsheet for establishing a pasture rental rate based on budgeted income and party contributions
L8: Version- 2.10.2016
B28: INTRODUCTION
B29: This tool was developed to assist landowner and tenant in determining an equitable grazing lease by considering three levels of pasture productivity. All costs and services provided by each party are taken into consideration and pricing per acre, per head, per AUM, or per pound of gain are reported.
B31: INSTRUCTIONS FOR THE USER:
B32: Be sure to "Enable Content" and "Enable Macros" for the spreadsheet to function correctly. Blue values are inputs that should be changed from the defaults to match your operation. Black values are automatically calculated.
B35: The companion publication with full instructions and explanations can be found by clicking | L35: HERE
B39: FOR MORE INFORMATION:
B40: Developed by:
B42: Robin Reid | H42: Mykel Taylor Ph.D.
B43: Extension Associate | H43: Assistant Professor
B44: Kansas State University | H44: Kansas State University
B45: robinreid@ksu.edu | H45: mtaylor@ksu.edu
B46: 785-532-0964 | H46: 785-532-3033
B48: Copyright 2016 AgManager.info, K-State Department of Agricultural Economics

Sheet Stocking Rate
A1: Calculating a Stocking Rate
A3: Inputs
A4: Grazing Period Start | B4: 2016-05-01
A5: Grazing Period End | B5: 2016-10-31
A6: Grazing Days | B6: =B5-B4 -> 183
A7: Total Acres of Pasture | B7: 160
C9: Unfavorable Year | D9: Normal Year | E9: Favorable Year | G9: Assumptions:
A10: Pounds of Production per Acre | C10: 2500 | D10: 3500 | E10: 4500
A11: Pounds of Grazed Forage per Acre | C11: =C10*$G$11 -> 625 | D11: =D10*$G$11 -> 875 | E11: =E10*$G$11 -> 1125 | G11: 0.25 | H11: Harvest Efficiency
A12: AUM's available/Acre | C12: =C11/G12 -> 0.6849315068 | D12: =D11/G12 -> 0.9589041096 | E12: =E11/G12 -> 1.232876712 | G12: 912.5 | H12: Pounds per AUM
A13: Total AUM's for pasture | C13: =C12*$B$7 -> 109.5890411 | D13: =D12*$B$7 -> 153.4246575 | E13: =E12*$B$7 -> 197.260274 | G13: 0.03 | H13: Forage Consumed per Day (Percent of Body Weight)
A14: Consumed pounds of forage on pasture | C14: =C11*$B$7 -> 100000 | D14: =D11*$B$7 -> 140000 | E14: 180000
C18: Forage Consumed per Day (lbs) | D18: Total Forage For Grazing Period (lbs) | F18: Ideal Stocking Rate
A19: COW/CALF PAIRS | C19: =G13*(B20+AVERAGE(B21:B22)) -> 49.5 | D19: =C19*B6 -> 9058.5 | G19: Unfavorable Year | H19: Normal Year | I19: Favorable Year
A20: Mature Cow Weight | B20: 1250 | F20: Number of Cow/Calf Pairs | G20: =IF(B27>0,(C14/($D$19+$D$23*(1/$B$27))),(C14/D19)) -> 10.88108497 | H20: =IF(B27>0,(D14/($D$19+$D$23*(1/$B$27))),(D14/D19)) -> 15.23351896 | I20: =IF(B27>0,(E14/($D$19+$D$23*(1/$B$27))),(E14/D19)) -> 19.58595295
A21: Calf Starting Weight | B21: 250 | F21: Number of Bulls | G21: =IF(B27>0,(C14/($D$19+$D$23*(1/$B$27)))*(1/$B$27),0) -> 0.435243399 | H21: =IF(B27>0,(D14/($D$19+$D$23*(1/$B$27)))*(1/$B$27),0) -> 0.6093407586 | I21: =IF(B27>0,(E14/($D$19+$D$23*(1/$B$27)))*(1/$B$27),0) -> 0.7834381182
A22: Calf Ending Weight | B22: 550
A23: BULLS | C23: =G13*B24 -> 54 | D23: =C23*(B26-B25) -> 3294 | F23: Acres per Cow/Calf Pair & Proportion of Bull | G23: =IF($B$27>0,($B$7/(G20+(1/$B$27)*G21)),$B$7/G20) -> 14.68092652 | H23: =IF($B$27>0,($B$7/(H20+(1/$B$27)*H21)),$B$7/H20) -> 10.48637608 | I23: 8.156070288
A24: Average Weight | B24: 1800
A25: Date In | B25: 2016-06-01
A26: Date Out | B26: 2016-08-01
A27: # of Cows per Bull | B27: 25
A28: OR | F28: OR
C29: Forage Consumed per Day (lbs) | D29: Total Forage For Grazing Period (lbs) | F29: Ideal Stocking Rate
A30: STOCKER CATTLE | C30: =(((B32+B31)/2)*G13) -> 22.5 | D30: =C30*B6 -> 4117.5 | F30: Stocker Cattle | G30: =C14/$D$30 -> 24.28658166 | H30: =D14/$D$30 -> 34.00121433 | I30: =E14/$D$30 -> 43.71584699
A31: Starting Weight | B31: 600
A32: Ending Weight | B32: 900 | F32: Acres per Stocker | G32: =$B$7/G30 -> 6.588 | H32: =$B$7/H30 -> 4.705714286 | I32: =$B$7/I30 -> 3.66
A33: Average Daily Gain | B33: =(B32-B31)/B6 -> 1.639344262

Sheet Stocker Cattle Budget
A1: Budgeting for Stocker Cattle Grazing-Inputs | O1: Internal Notes:
A3: Inputs from Stocking Rate Page | H3: Expected Cattle Returns
A4: Grazing Period Start | B4: ='Stocking Rate'!B4 -> 2016-05-01 | J4: Per Head
A5: Grazing Period End | B5: ='Stocking Rate'!B5 -> 2016-10-31 | H5: Beginning Weight (lbs) | I5: ='Stocking Rate'!B31 -> 600 | J5: =-I5/100*I6 -> -1008
A6: Grazing Days | B6: =B5-B4 -> 183 | H6: Beginning Cost ($/cwt) | I6: 168
A7: Total Acres of Pasture | B7: ='Stocking Rate'!B7 -> 160 | H7: Death Loss | I7: 0.01 | J7: =J5*I7 -> -10.08
H8: Ending Weight (lbs) | I8: ='Stocking Rate'!B32 -> 900 | J8: =I8/100*I9 -> 1287
A9: Growing Season | B9: Unfavorable | C9: Normal | D9: Favorable | H9: Expected Ending Price ($/cwt) | I9: 143
A10: # of head | B10: =ROUND('Stocking Rate'!G30,0) -> 24 | C10: =ROUND('Stocking Rate'!H30,0) -> 34 | D10: =ROUND('Stocking Rate'!I30,0) -> 44
A11: Acres per Head | B11: =B7/B10 -> 6.666666667 | C11: =B7/C10 -> 4.705882353 | D11: =B7/D10 -> 3.636363636 | H11: Gross Income per head | J11: =SUM(J5:J9) -> 268.92
A13: Livestock Costs
I14: Total for Herd | L14: Cost Paid by
A15: Category: | H15: $/head | I15: Unfavorable | J15: Normal | K15: Favorable | L15: Producer % | M15: Landowner %
A16: Harvested Forage | B16: 0 | C16: per ton | D16: x | E16: 0 | F16: total lbs | G16: = | H16: =(B16/2000)*E16 -> 0 | I16: =H16*B10 -> 0 | J16: =H16*C10 -> 0 | K16: =H16*D10 -> 0 | L16: 1 | M16: =1-L16 -> 0
A17: Grain/Protein Supplements | B17: 150 | C17: per ton | D17: x | E17: =90*3 -> 270 | F17: total lbs | G17: = | H17: =(B17/2000)*E17 -> 20.25 | I17: =$H$17*B10 -> 486 | J17: =$H$17*C10 -> 688.5 | K17: =$H$17*D10 -> 891 | L17: 1 | M17: =1-L17 -> 0
A18: Mineral | B18: 550 | C18: per ton | D18: x | E18: =0.25*B6 -> 45.75 | F18: total lbs | G18: = | H18: =(B18/2000)*E18 -> 12.58125 | I18: =$H$18*B10 -> 301.95 | J18: =$H$18*C10 -> 427.7625 | K18: =$H$18*D10 -> 553.575 | L18: 1 | M18: 0
A19: Labor (towards cattle) | B19: 20 | C19: per hour | D19: x | E19: 1.2 | F19: hours | G19: = | H19: =B19*E19 -> 24 | I19: =J19-(0.5*(J19-(H19*B10))) -> 696 | J19: =$H$19*C10 -> 816 | K19: =J19+(0.5*((H19*D10)-J19)) -> 936 | L19: 1 | M19: 0
A20: Vet Medicine/Drugs | H20: 7 | I20: =$H$20*B10 -> 168 | J20: =$H$20*C10 -> 238 | K20: =$H$20*D10 -> 308 | L20: 1 | M20: 0
A21: Marketing | H21: 11 | I21: =$H$21*B10 -> 264 | J21: =$H$21*C10 -> 374 | K21: =$H$21*D10 -> 484 | L21: 1 | M21: 0
A22: Utilities,Gas, Fuel, Oil | H22: 6 | I22: =J22-(0.5*(J22-(H22*B10))) -> 174 | J22: =$H$22*C10 -> 204 | K22: =J22+(0.5*((H22*D10)-J22)) -> 234 | L22: 1 | M22: 0
A23: Machinery charge | H23: =10 -> 10 | I23: =J23-(0.5*(J23-(H23*B10))) -> 290 | J23: =$H$23*C10 -> 340 | K23: =J23+(0.5*((H23*D10)-J23)) -> 390 | L23: 1 | M23: 0
A24: Cash Interest on Cattle Investment | B24: =-J5 -> 1008 | C24: purchased cost | D24: x | E24: 0.05 | F24: operating interest | H24: =B24*E24*(B6/365) -> 25.2690411 | I24: =$H$24*B10 -> 606.4569863 | J24: =$H$24*C10 -> 859.1473973 | K24: =$H$24*D10 -> 1111.837808 | L24: 1 | M24: 0
A25: Miscellaneous | H25: 2 | I25: =$H$25*B10 -> 48 | J25: =$H$25*C10 -> 68 | K25: =$H$25*D10 -> 88 | L25: 1 | M25: 0
A26: Fixed Overhead | B26: Total dollars | H26: -- | I26: =SUM(B27:B29) -> 433.5 | J26: =SUM(B27:B29) -> 433.5 | K26: =SUM(B27:B29) -> 433.5 | L26: 1 | M26: 0
A27: Taxes | B27: 42.5 | H27: Total Costs | I27: =SUM(I16:I26) -> 3467.906986 | J27: =SUM(J16:J26) -> 4448.909897 | K27: =SUM(K16:K26) -> 5429.912808
A28: Insurance | B28: 51 | H28: Per Head | I28: =I27/B10 -> 144.4961244 | J28: =J27/C10 -> 130.8502911 | K28: =K27/D10 -> 123.4071093
A29: Depreciation | B29: 340 | H29: Per Head plus beg. Value | I29: =I28+-$J$5 -> 1152.496124 | J29: =J28+-$J$5 -> 1138.850291 | K29: 1131.407109
A31: Land Costs
H32: $/acre | I32: Total for Pasture | J32: Cost Paid by
A33: Category: | J33: Producer % | K33: Landowner %
A34: Water Source Maintenance | H34: 0.89 | I34: =H34*$B$7 -> 142.4 | J34: 0 | K34: =1-J34 -> 1
A35: Spraying Weeds | H35: 3.55 | I35: =H35*$B$7 -> 568 | J35: 1 | K35: 0
A36: Fertilizer | H36: 0 | I36: 0 | J36: 1 | K36: 0
A37: Burning Pasture | H37: 0.56 | I37: =H37*$B$7 -> 89.6 | J37: 1 | K37: 0
A38: Maintaining Fence | H38: 2.84 | I38: =H38*$B$7 -> 454.4 | J38: 1 | K38: 0
A39: New Fence Construction | H39: 2 | I39: =H39*$B$7 -> 320 | J39: 0 | K39: 1
A40: Corrals | H40: 0.45 | I40: =H40*$B$7 -> 72 | J40: 1 | K40: 0
A41: Other land costs | H41: 0 | I41: =H41*$B$7 -> 0 | J41: 1 | K41: 0
A42: Total Costs | H42: =SUM(H34:H41) -> 10.29 | I42: =SUM(I34:I41) -> 1646.4
A44: Interest on Land | B44: 2000 | C44: Land Value per acre | E44: 0.01 | F44: rent/value ratio | G44: = | H44: =B44*E44 -> 20 | I44: =H44*B7 -> 3200
A48: Budgeting for Stocker Cattle Grazing -Results
A50: Graphical Depiction of Rental Rates | G50: Budgeting a Rental Rate-Stocker Cattle
I51: Unfavorable | J51: Normal | K51: Favorable
G52: Producers Share of Cost | I52: =SUMPRODUCT(I16:I26,$L$16:$L$26)+SUMPRODUCT($I$34:$I$41,$J$34:$J$41) -> 4651.906986 | J52: =SUMPRODUCT(J16:J26,$L$16:$L$26)+SUMPRODUCT($I$34:$I$41,$J$34:$J$41) -> 5632.909897 | K52: =SUMPRODUCT(K16:K26,$L$16:$L$26)+SUMPRODUCT($I$34:$I$41,$J$34:$J$41) -> 6613.912808
G53: Gross Income | I53: =J11*B10 -> 6454.08 | J53: =J11*C10 -> 9143.28 | K53: =J11*D10 -> 11832.48
G54: Return over Producer Cost | I54: =I53-I52 -> 1802.173014 | J54: =J53-J52 -> 3510.370103 | K54: =K53-K52 -> 5218.567192
H56: Amount Producer Could Afford to Pay
H57: Rent per Acre | I57: =I54/$B$7 -> 11.26358134 | J57: =J54/$B$7 -> 21.93981314 | K57: =K54/$B$7 -> 32.61604495
H58: Rent per Head | I58: =I54/B10 -> 75.09054224 | J58: =J54/C10 -> 103.2461795 | K58: =K54/D10 -> 118.6037998
H59: Rent per Pound of Gain | I59: =I54/(($I$8-$I$5)*B10) -> 0.2503018075 | J59: =J54/(($I$8-$I$5)*C10) -> 0.3441539316 | K59: =K54/(($I$8-$I$5)*D10) -> 0.3953459994
H60: Rent per AUM | I60: =I54/'Stocking Rate'!C13 -> 16.44482875 | J60: =J54/'Stocking Rate'!D13 -> 22.88009085 | K60: =K54/'Stocking Rate'!E13 -> 26.45523646
G62: Landowner Share of Cost | I62: =SUMPRODUCT(I16:I26,$M$16:$M$26)+SUMPRODUCT($I$34:$I$41,$K$34:$K$41)+$I$44 -> 3662.4 | J62: =SUMPRODUCT(J16:J26,$M$16:$M$26)+SUMPRODUCT($I$34:$I$41,$K$34:$K$41)+$I$44 -> 3662.4 | K62: =SUMPRODUCT(K16:K26,$M$16:$M$26)+SUMPRODUCT($I$34:$I$41,$K$34:$K$41)+$I$44 -> 3662.4
G63: Gross Income | I63: =I53 -> 6454.08 | J63: =J53 -> 9143.28 | K63: 11832.48
G64: Return over Landowner Cost | I64: =I63-I62 -> 2791.68 | J64: =J63-J62 -> 5480.88 | K64: 8170.08
H66: Landowner Cost
H67: Rent per Acre | I67: =I62/$B$7 -> 22.89 | J67: =J62/$B$7 -> 22.89 | K67: 22.89
H68: Rent per Head | I68: =I62/B10 -> 152.6 | J68: =J62/C10 -> 107.7176471 | K68: =K62/D10 -> 83.23636364
H69: Rent per Pound of Gain | I69: =I62/(($I$8-$I$5)*B10) -> 0.5086666667 | J69: =J62/(($I$8-$I$5)*C10) -> 0.3590588235 | K69: =K62/(($I$8-$I$5)*D10) -> 0.2774545455
H70: Rent per AUM | I70: =I62/'Stocking Rate'!C13 -> 33.4194 | J70: =J62/'Stocking Rate'!D13 -> 23.871 | K70: =K62/'Stocking Rate'!E13 -> 18.56633333
A77: Budgeting for Stocker Cattle Grazing -Production Risk
A80: Production Variables | G80: Stocker Cattle Production Risk
A81: Death Loss | B81: Normal | C81: =IF(B81="Normal", I7, IF(B81="1% lower", (MAX(I7-0.01,0)),IF(B81="5% lower", (MAX(I7-0.05,0)),IF(B81="1% higher", (I7+0.01),IF(B81="5% higher", (I7+0.05),0))))) -> 0.01 | I81: Unfavorable | J81: Normal | K81: Favorable
A82: Stocker Ending Weight | B82: 1% higher | C82: =IF(B82="Normal",I8,IF(B82="1% lower",(I8*0.99),IF(B82="5% lower",(I8*0.95),IF(B82="1% higher",(I8*1.01),IF(B82="5% higher",(I8*1.05),FALSE))))) -> 909 | G82: Producers Share of Cost | I82: =SUMPRODUCT(I16:I26,$L$16:$L$26)+SUMPRODUCT($I$34:$I$41,$J$34:$J$41) -> 4651.906986 | J82: =SUMPRODUCT(J16:J26,$L$16:$L$26)+SUMPRODUCT($I$34:$I$41,$J$34:$J$41) -> 5632.909897 | K82: 6613.912808
A83: Stocker Selling Price | B83: 5% lower | C83: =IF(B83="Normal",I9,IF(B83="1% lower",(I9*0.99),IF(B83="5% lower",(I9*0.95),IF(B83="1% higher",(I9*1.01),IF(B83="5% higher",(I9*1.05),FALSE))))) -> 135.85 | G83: Gross Income | I83: =($J$5+($C$81*$J$5)+($C$82*$C$83/100))*B10 -> 5203.116 | J83: =($J$5+($C$81*$J$5)+($C$82*$C$83/100))*C10 -> 7371.081 | K83: 9539.046
G84: Return over Producer Cost | I84: =I83-I82 -> 551.2090137 | J84: =J83-J82 -> 1738.171103 | K84: =K83-K82 -> 2925.133192
H86: Amount Producer Could Afford to Pay
H87: Rent per Acre | I87: =I84/$B$7 -> 3.445056336 | J87: =J84/$B$7 -> 10.86356939 | K87: =K84/$B$7 -> 18.28208245
H88: Rent per Head | I88: =I84/B10 -> 22.96704224 | J88: =J84/C10 -> 51.12267949 | K88: 66.48029981
H89: Rent per Pound of Gain | I89: =I84/(($I$8-$I$5)*B10) -> 0.07655680746 | J89: =J84/(($I$8-$I$5)*C10) -> 0.1704089316 | K89: 0.2216009994
H90: Rent per AUM | I90: =I84/'Stocking Rate'!C30 -> 24.49817839 | J90: =J84/'Stocking Rate'!D13 -> 11.32915094 | K90: =K84/'Stocking Rate'!E13 -> 14.82880021
G92: Landowner Share of Cost | I92: =SUMPRODUCT(I16:I26,$M$16:$M$26)+SUMPRODUCT($I$34:$I$41,$K$34:$K$41)+$I$44 -> 3662.4 | J92: =SUMPRODUCT(J16:J26,$M$16:$M$26)+SUMPRODUCT($I$34:$I$41,$K$34:$K$41)+$I$44 -> 3662.4 | K92: =SUMPRODUCT(K16:K26,$M$16:$M$26)+SUMPRODUCT($I$34:$I$41,$K$34:$K$41)+$I$44 -> 3662.4
G93: Gross Income | I93: =I83 -> 5203.116 | J93: =J83 -> 7371.081 | K93: 9539.046
G94: Return over Landowner Cost | I94: =I93-I92 -> 1540.716 | J94: =J93-J92 -> 3708.681 | K94: 5876.646
H96: Landowner Cost
H97: Rent per Acre | I97: =I92/$B$7 -> 22.89 | J97: =J92/$B$7 -> 22.89 | K97: 22.89
H98: Rent per Head | I98: =I92/B10 -> 152.6 | J98: =J92/C10 -> 107.7176471 | K98: =K92/D10 -> 83.23636364
H99: Rent per Pound of Gain | I99: =I92/(($I$8-$I$5)*B10) -> 0.5086666667 | J99: =J92/(($I$8-$I$5)*C10) -> 0.3590588235 | K99: 0.2774545455
H100: Rent per AUM | I100: =I92/'Stocking Rate'!C13 -> 33.4194 | J100: =J92/'Stocking Rate'!D13 -> 23.871 | K100: =K92/'Stocking Rate'!E13 -> 18.56633333

Sheet CowCalf Budget
A1: Budgeting for Cow/Calf Grazing- Inputs | M1: Internal Notes:
A3: Inputs from Stocking Rate Page | H3: Expected Cattle Returns
A4: Grazing Period Start | B4: ='Stocking Rate'!B4 -> 2016-05-01 | J4: Per Head
A5: Grazing Period End | B5: ='Stocking Rate'!B5 -> 2016-10-31 | H5: Cow Yearly Cost (w/o pasture) | J5: 600 | M5: Cow/Calf Livestock Budget
A6: Grazing Days | B6: =B5-B4 -> 183 | M6: $1,123.36 total cost +226 cull cow income + 158.8 pasture cost (leave heifer cost in)=
A7: Total Acres of Pasture | B7: ='Stocking Rate'!B7 -> 160 | H7: Weaning Percentage | I7: 0.89 | M7: =-1123.36+226+158.8 -> -738.56
H8: Ending Weight (lbs) | I8: ='Stocking Rate'!B22 -> 550 | J8: =I8/100*I9*I7 -> 763.62 | M8: Pasture cost w/o taking heifer out 180.6/(1400+.16*750+.04*1800)
A9: Growing Season | B9: Unfavorable | C9: Normal | D9: Favorable | H9: Expected Ending Price ($/cwt) | I9: 156 | M9: =180.6/(1400+0.16*750+0.04*1800) -> 0.1134422111 | N9: per pound
A10: # of head | B10: =ROUND('Stocking Rate'!G20,0) -> 11 | C10: =ROUND('Stocking Rate'!H20,0) -> 15 | D10: =ROUND('Stocking Rate'!I20,0) -> 20 | M10: =M9*1400 -> 158.8190955
A11: Acres per Head | B11: =B7/B10 -> 14.54545455 | C11: =B7/C10 -> 10.66666667 | D11: =B7/D10 -> 8 | H11: Gross Income per head | J11: =J8-J5 -> 163.62
A13: Land Costs
H14: $/acre | I14: Total for Pasture | J14: Cost Paid by
A15: Category: | J15: Producer % | K15: Landowner %
A16: Water Source Maintenance | H16: 0.89 | I16: =H16*$B$7 -> 142.4 | J16: 0 | K16: =1-J16 -> 1
A17: Spraying Weeds | H17: 3.55 | I17: =H17*$B$7 -> 568 | J17: 1 | K17: 0
A18: Fertilizer | H18: 0 | I18: 0 | J18: 1 | K18: 0
A19: Burning Pasture | H19: 0.56 | I19: =H19*$B$7 -> 89.6 | J19: 1 | K19: 0
A20: Maintaining Fence | H20: 1.47 | I20: =H20*$B$7 -> 235.2 | J20: 1 | K20: 0
A21: New Fence Construction | H21: 2 | I21: =H21*$B$7 -> 320 | J21: 0 | K21: 1
A22: Corrals | H22: 0.45 | I22: =H22*$B$7 -> 72 | J22: 1 | K22: 0
A23: Other land costs | H23: 0 | I23: =H23*$B$7 -> 0 | J23: 1 | K23: 0
A24: Total Costs | H24: =SUM(H16:H23) -> 8.92 | I24: =SUM(I16:I23) -> 1427.2
A26: Interest on Land | B26: 2000 | C26: Land Value per acre | E26: 0.01 | F26: rent/value ratio | G26: = | H26: =B26*E26 -> 20 | I26: =H26*B7 -> 3200
A28: Budgeting for Cow/Calf Grazing -Results
A30: Graphical Depiction of Rental Rates | G30: Budgeting a Rental Rate-Cow/Calf Pairs | O30: 15% lower
I31: Unfavorable | J31: Normal | K31: Favorable | O31: 10% lower
G32: Producers Share of Cost | I32: =SUMPRODUCT($I$16:$I$23,$J$16:$J$23) -> 964.8 | J32: =SUMPRODUCT($I$16:$I$23,$J$16:$J$23) -> 964.8 | K32: =SUMPRODUCT($I$16:$I$23,$J$16:$J$23) -> 964.8 | O32: 5% lower
G33: Gross Income | I33: =J11*B10 -> 1799.82 | J33: =J11*C10 -> 2454.3 | K33: =J11*D10 -> 3272.4 | O33: Normal
G34: Return over Producer Cost | I34: =I33-I32 -> 835.02 | J34: =J33-J32 -> 1489.5 | K34: =K33-K32 -> 2307.6 | O34: 5% higher
O35: 10% higher
H36: Amount Producer Could Afford to Pay | O36: 15% higher
H37: Rent per Acre | I37: =I34/$B$7 -> 5.218875 | J37: =J34/$B$7 -> 9.309375 | K37: =K34/$B$7 -> 14.4225
H38: Rent per Pair | I38: =I34/B10 -> 75.91090909 | J38: =J34/C10 -> 99.3 | K38: =K34/D10 -> 115.38 | O38: 5% lower
H39: Rent per AUM | I39: =I34/'Stocking Rate'!C13 -> 7.6195575 | J39: =J34/'Stocking Rate'!D13 -> 9.708348214 | K39: =K34/'Stocking Rate'!E13 -> 11.69825 | O39: 1% lower
O40: Normal
G41: Landowner Share of Cost | I41: =SUMPRODUCT($I$16:$I$23,$K$16:$K$23)+$I$26 -> 3662.4 | J41: =SUMPRODUCT($I$16:$I$23,$K$16:$K$23)+$I$26 -> 3662.4 | K41: =SUMPRODUCT($I$16:$I$23,$K$16:$K$23)+$I$26 -> 3662.4 | O41: 1% higher
G42: Gross Income | I42: =I33 -> 1799.82 | J42: =J33 -> 2454.3 | K42: =K33 -> 3272.4 | O42: 5% higher
G43: Return over Landowner Cost | I43: =I42-I41 -> -1862.58 | J43: =J42-J41 -> -1208.1 | K43: -390
H45: Landowner Cost
H46: Rent per Acre | I46: =I41/$B$7 -> 22.89 | J46: =J41/$B$7 -> 22.89 | K46: 22.89
H47: Rent per Pair | I47: =I41/B10 -> 332.9454545 | J47: =J41/C10 -> 244.16 | K47: =K41/D10 -> 183.12
H48: Rent per AUM | I48: =I41/'Stocking Rate'!C13 -> 33.4194 | J48: =J41/'Stocking Rate'!D13 -> 23.871 | K48: =K41/'Stocking Rate'!E13 -> 18.56633333
A54: Budgeting for Cow/Calf Grazing -Production Risk
A57: Production Variables | G57: Table 4: Budgeting a Rental Rate
A58: Weaning Percentage | B58: 5% lower | C58: =IF(B58="Normal", I7, IF(B58="1% lower", (I7-0.01),IF(B58="5% lower", (I7-0.05),IF(B58="1% higher", (I7+0.01),IF(B58="5% higher", (I7+0.05),0))))) -> 0.84 | I58: Unfavorable | J58: Normal | K58: Favorable
A59: Selling Calf Weight | B59: 5% higher | C59: =IF(B59="Normal",I8,IF(B59="1% lower",(I8*0.99),IF(B59="5% lower",(I8*0.95),IF(B59="1% higher",(I8*1.01),IF(B59="5% higher",(I8*1.05),FALSE))))) -> 577.5 | G59: Producers Share of Cost | I59: =SUMPRODUCT($I$16:$I$23,$J$16:$J$23) -> 964.8 | J59: =SUMPRODUCT($I$16:$I$23,$J$16:$J$23) -> 964.8 | K59: =SUMPRODUCT($I$16:$I$23,$J$16:$J$23) -> 964.8
A60: Selling Calf Price | B60: 5% higher | C60: =IF(B60="Normal",I9,IF(B60="1% lower",(I9*0.99),IF(B60="5% lower",(I9*0.95),IF(B60="1% higher",(I9*1.01),IF(B60="5% higher",(I9*1.05),FALSE))))) -> 163.8 | G60: Gross Income | I60: =(($C$58*$C$59*$C$60/100)-$C$61)*B10 -> 2140.5318 | J60: =(($C$58*$C$59*$C$60/100)-$C$61)*C10 -> 2918.907 | K60: 3891.876
A61: Yearly Cow Cost | B61: Normal | C61: =IF(B61="Normal",J5,IF(B61="1% lower",(J5*0.99),IF(B61="5% lower",(J5*0.95),IF(B61="1% higher",(J5*1.01),IF(B61="5% higher",(J5*1.05),FALSE))))) -> 600 | G61: Return over Producer Cost | I61: =I60-I59 -> 1175.7318 | J61: =J60-J59 -> 1954.107 | K61: =K60-K59 -> 2927.076
H63: Amount Producer Could Afford to Pay
H64: Rent per Acre | I64: =I61/$B$7 -> 7.34832375 | J64: =J61/$B$7 -> 12.21316875 | K64: =K61/$B$7 -> 18.294225
H65: Rent per Pair | I65: =I61/B10 -> 106.8847091 | J65: =J61/C10 -> 130.2738 | K65: 146.3538
H66: Rent per AUM | I66: =I61/'Stocking Rate'!C13 -> 10.72855268 | J66: =J61/'Stocking Rate'!D13 -> 12.73659027 | K66: =K61/'Stocking Rate'!E13 -> 14.83864917
G68: Landowner Share of Cost | I68: =SUMPRODUCT($I$16:$I$23,$K$16:$K$23)+$I$26 -> 3662.4 | J68: =SUMPRODUCT($I$16:$I$23,$K$16:$K$23)+$I$26 -> 3662.4 | K68: =SUMPRODUCT($I$16:$I$23,$K$16:$K$23)+$I$26 -> 3662.4
G69: Gross Income | I69: =I60 -> 2140.5318 | J69: =J60 -> 2918.907 | K69: =K60 -> 3891.876
G70: Return over Landowner Cost | I70: =I69-I68 -> -1521.8682 | J70: =J69-J68 -> -743.493 | K70: 229.476
H72: Landowner Cost
H73: Rent per Acre | I73: =I68/$B$7 -> 22.89 | J73: =J68/$B$7 -> 22.89 | K73: 22.89
H74: Rent per Pair | I74: =I68/B10 -> 332.9454545 | J74: =J68/C10 -> 244.16 | K74: 183.12
H75: Rent per AUM | I75: =I68/'Stocking Rate'!C13 -> 33.4194 | J75: =J68/'Stocking Rate'!D13 -> 23.871 | K75: =K68/'Stocking Rate'!E13 -> 18.56633333
